[Event "Allsvenskan 24-25"]
[Site "Linköping, Sweden"]
[Date "2025.03.15"]
[Round "9.1"]
[White "Lind, Jan-Olov"]
[Black "Jakobsson, Per-Ove"]
[Result "1/2-1/2"]
[TimeControl "90 min/40 moves + 30 min + 30 sec from move 1"]
[WhiteElo "2111"]
[BlackElo "1857"]

1. e4 {[%clk 01:30:52]} {[%emt 00:00:06]} c5 {[%clk 01:30:51]} {[%emt
00:00:10]} 2. Nf3 {[%clk 01:31:11]} {[%emt 00:00:11]} d6 {[%clk 01:31:15]}
{[%emt 00:00:07]} 3. d4 {[%clk 01:31:29]} {[%emt 00:00:11]} cxd4 {[%clk
01:31:39]} {[%emt 00:00:06]} 4. Nxd4 {[%clk 01:31:54]} {[%emt 00:00:05]} Nf6
{[%clk 01:32:03]} {[%emt 00:00:07]} 5. Nc3 {[%clk 01:32:19]} {[%emt 00:00:04]}
a6 {[%clk 01:32:28]} {[%emt 00:00:06]} 6. Bc4 {[%clk 01:32:28]} {[%emt
00:00:21]} e6 {[%clk 01:32:53]} {[%emt 00:00:05]} 7. Be3 {[%clk 01:32:50]}
{[%emt 00:00:07]} Nc6 {[%clk 01:29:17]} {[%emt 00:04:07]} 8. Bb3 {[%clk
01:32:40]} {[%emt 00:00:39]} Qc7 {[%clk 01:24:47]} {[%emt 00:05:00]} 9. Qe2
{[%clk 01:32:58]} {[%emt 00:00:12]} b5 {[%clk 01:18:15]} {[%emt 00:07:02]} 10.
O-O-O {[%clk 01:21:29]} {[%emt 00:11:59]} Be7 {[%clk 01:12:53]} {[%emt
00:05:52]} 11. f3 {[%clk 01:17:20]} {[%emt 00:04:39]} Na5 {[%clk 01:07:13]}
{[%emt 00:06:11]} 12. g4 {[%clk 01:16:03]} {[%emt 00:01:46]} Nxb3+ {[%emt
00:03:15]} 13. axb3 {[%clk 01:16:22]} {[%emt 00:00:10]} Bb7 {[%clk 00:58:19]}
{[%emt 00:06:41]} 14. g5 {[%clk 01:09:21]} {[%emt 00:07:30]} Nd7 {[%clk
00:54:10]} {[%emt 00:04:40]} 15. h4 {[%clk 01:05:40]} {[%emt 00:04:10]} g6
{[%clk 00:48:56]} {[%emt 00:05:44]} 16. Qd2 {[%clk 00:47:39]} {[%emt 00:18:30]}
b4 {[%clk 00:41:33]} {[%emt 00:07:54]} 17. Na4 {[%clk 00:41:30]} {[%emt
00:06:39]} d5 {[%clk 00:39:40]} {[%emt 00:02:23]} 18. exd5 {[%emt 00:00:28]}
Bxd5 {[%clk 00:38:33]} {[%emt 00:01:35]} 19. Kb1 {[%clk 00:41:41]} {[%emt
00:00:23]} Nc5 {[%clk 00:29:09]} {[%emt 00:09:55]} 20. Nxc5 {[%clk 00:34:24]}
{[%emt 00:07:47]} Bxc5 {[%clk 00:29:14]} {[%emt 00:00:24]} 21. Bf4 {[%clk
00:34:12]} {[%emt 00:00:42]} Bd6 {[%clk 00:27:43]} {[%emt 00:02:01]} 22. Bxd6
{[%clk 00:30:34]} {[%emt 00:04:08]} Qxd6 {[%clk 00:27:54]} {[%emt 00:00:16]} 23.
h5 {[%clk 00:27:22]} {[%emt 00:03:45]} Ke7 {[%clk 00:22:43]} {[%emt 00:05:41]}
24. f4 {[%clk 00:18:58]} {[%emt 00:08:53]} a5 {[%clk 00:20:08]} {[%emt
00:03:06]} 25. hxg6 {[%clk 00:12:47]} {[%emt 00:06:41]} hxg6 {[%clk 00:20:07]}
{[%emt 00:00:30]} 26. Rxh8 {[%clk 00:13:06]} {[%emt 00:00:11]} Rxh8 {[%clk
00:20:35]} {[%emt 00:00:02]} 27. Nf3 {[%clk 00:12:27]} {[%emt 00:01:08]} Qc7
{[%clk 00:19:28]} {[%emt 00:01:37]} 28. Qd4 {[%clk 00:11:29]} {[%emt 00:01:28]}
Rh3 {[%clk 00:19:22]} {[%emt 00:00:37]} 29. Qf6+ {[%clk 00:11:35]} {[%emt
00:00:24]} Kf8 {[%clk 00:19:15]} {[%emt 00:00:37]} 30. Ne5 {[%clk 00:10:51]}
{[%emt 00:01:14]} Rh2 {[%clk 00:17:58]} {[%emt 00:01:47]} 31. Rc1 {[%clk
00:05:57]} {[%emt 00:05:24]} Be4 {[%clk 00:17:17]} {[%emt 00:01:11]} 32. Ka2
{[%clk 00:03:37]} {[%emt 00:02:49]} a4 {[%clk 00:09:33]} {[%emt 00:08:15]} 33.
bxa4 {[%clk 00:03:22]} {[%emt 00:00:45]} Qa7 {[%clk 00:08:56]} {[%emt
00:01:07]} 34. Qd8+ {[%clk 00:02:00]} {[%emt 00:01:53]} Kg7 {[%clk 00:09:25]}
{[%emt 00:00:02]} 35. Qf6+ {[%clk 00:01:39]} {[%emt 00:00:50]} Kg8 {[%clk
00:09:15]} {[%emt 00:00:40]} 36. Qd8+ {[%clk 00:01:19]} {[%emt 00:00:50]} Kg7
{[%clk 00:09:41]} {[%emt 00:00:04]} 37. Qf6+ {[%clk 00:01:27]} {[%emt
00:00:21]} Kg8 {[%clk 00:10:06]} {[%emt 00:00:05]} 38. Qd8+ {[%clk 00:01:07]}
{[%emt 00:00:51]} Kg7 {[%clk 00:10:26]} {[%emt 00:00:10]} 39. Qf6+ {[%clk
00:01:15]} {[%emt 00:00:22]} 1/2-1/2

[Event "Allsvenskan 24-25"]
[Site "Linköping, Sweden"]
[Date "2025.03.15"]
[Round "9.2"]
[White "Qwarfort, Fredrik"]
[Black "Jonsson, Magnus"]
[Result "1-0"]
[TimeControl "90 min/40 moves + 30 min + 30 sec from move 1"]
[WhiteElo "1830"]
[BlackElo "1999"]

1. d4 {[%clk 01:30:57]} {[%emt 00:00:02]} Nf6 {[%clk 01:30:19]} {[%emt
00:00:40]} 2. c4 {[%clk 01:30:41]} {[%emt 00:00:48]} e6 {[%clk 01:29:48]}
{[%emt 00:01:00]} 3. Nf3 {[%clk 01:30:45]} {[%emt 00:00:27]} b6 {[%clk
01:29:45]} {[%emt 00:00:32]} 4. g3 {[%clk 01:31:09]} {[%emt 00:00:07]} Bb7
{[%clk 01:30:03]} {[%emt 00:00:12]} 5. Bg2 {[%clk 01:31:29]} {[%emt 00:00:10]}
Bb4+ {[%clk 01:28:28]} {[%emt 00:02:04]} 6. Bd2 {[%clk 01:31:51]} {[%emt
00:00:08]} Be7 {[%clk 01:28:49]} {[%emt 00:00:09]} 7. Nc3 {[%clk 01:30:13]}
{[%emt 00:02:09]} O-O {[%clk 01:28:01]} {[%emt 00:01:17]} 8. O-O {[%clk
01:30:30]} {[%emt 00:00:14]} c5 {[%clk 01:21:09]} {[%emt 00:07:22]} 9. a3
{[%clk 01:25:08]} {[%emt 00:05:52]} d5 {[%clk 01:15:38]} {[%emt 00:06:00]} 10.
cxd5 {[%clk 01:24:08]} {[%emt 00:01:31]} exd5 {[%clk 01:14:51]} {[%emt
00:01:17]} 11. Qc2 {[%clk 01:13:43]} {[%emt 00:10:55]} Nc6 {[%clk 01:06:45]}
{[%emt 00:08:36]} 12. e3 {[%clk 01:14:07]} {[%emt 00:00:06]} c4 {[%clk
01:04:51]} {[%emt 00:02:23]} 13. Ne5 {[%clk 01:07:26]} {[%emt 00:07:12]} Re8
{[%clk 00:45:05]} {[%emt 00:20:16]} 14. f4 {[%clk 01:04:16]} {[%emt 00:03:40]}
Na5 {[%clk 00:41:42]} {[%emt 00:03:52]} 15. Rad1 {[%clk 01:02:55]} {[%emt
00:01:52]} Nb3 {[%clk 00:41:29]} {[%emt 00:00:42]} 16. Nxc4 {[%clk 00:58:20]}
{[%emt 00:05:06]} dxc4 {[%clk 00:41:53]} {[%emt 00:00:06]} 17. Bxb7 {[%clk
00:58:44]} {[%emt 00:00:07]} Rb8 {[%clk 00:42:21]} {[%emt 00:00:02]} 18. Bc6
{[%clk 00:54:08]} {[%emt 00:05:05]} Rf8 {[%clk 00:42:27]} {[%emt 00:00:26]} 19.
Ne4 {[%clk 00:44:08]} {[%emt 00:10:29]} Nxd2 {[%clk 00:36:29]} {[%emt
00:06:27]} 20. Nxf6+ {[%clk 00:39:28]} {[%emt 00:05:10]} Bxf6 {[%clk 00:36:37]}
{[%emt 00:00:22]} 21. Rxd2 {[%clk 00:37:46]} {[%emt 00:02:12]} b5 {[%clk
00:36:48]} {[%emt 00:00:19]} 22. Kg2 {[%clk 00:34:08]} {[%emt 00:04:08]} Qb6
{[%clk 00:30:56]} {[%emt 00:06:22]} 23. Bf3 {[%clk 00:33:28]} {[%emt 00:01:10]}
a5 {[%clk 00:29:38]} {[%emt 00:01:48]} 24. Rfd1 {[%clk 00:29:54]} {[%emt
00:04:38]} Rfd8 {[%clk 00:27:38]} {[%emt 00:02:56]} 25. Re2 {[%clk 00:28:51]}
{[%emt 00:01:34]} Rbc8 {[%clk 00:21:27]} {[%emt 00:06:40]} 26. Rc1 {[%clk
00:25:02]} {[%emt 00:04:20]} g6 {[%clk 00:19:33]} {[%emt 00:02:24]} 27. Qd1
{[%clk 00:22:03]} {[%emt 00:03:28]} b4 {[%clk 00:18:32]} {[%emt 00:01:32]} 28.
axb4 {[%clk 00:21:17]} {[%emt 00:01:16]} axb4 {[%clk 00:18:25]} {[%emt
00:00:36]} 29. Rec2 {[%clk 00:20:56]} {[%emt 00:00:52]} Qa6 {[%clk 00:08:04]}
{[%emt 00:10:51]} 30. Qe2 {[%clk 00:20:56]} {[%emt 00:00:30]} Re8 {[%clk
00:07:47]} {[%emt 00:00:47]} 31. Rxc4 {[%clk 00:15:09]} {[%emt 00:06:17]} Rxc4
{[%clk 00:07:22]} {[%emt 00:00:56]} 32. Qxc4 {[%clk 00:15:12]} {[%emt
00:00:28]} Qxc4 {[%clk 00:07:02]} {[%emt 00:00:49]} 33. Rxc4 {[%clk 00:15:40]}
{[%emt 00:00:02]} Rxe3 {[%clk 00:07:26]} {[%emt 00:00:06]} 34. Rxb4 {[%clk
00:15:29]} {[%emt 00:00:41]} Rd3 {[%clk 00:07:45]} {[%emt 00:00:10]} 35. Be2
{[%clk 00:07:03]} {[%emt 00:08:57]} Rxd4 {[%clk 00:07:55]} {[%emt 00:00:21]} 36.
Rxd4 {[%clk 00:07:25]} {[%emt 00:00:07]} Bxd4 {[%clk 00:08:21]} {[%emt
00:00:03]} 37. b4 {[%clk 00:07:41]} {[%emt 00:00:14]} f5 {[%clk 00:07:00]}
{[%emt 00:01:52]} 38. h3 {[%clk 00:07:26]} {[%emt 00:00:45]} Kg7 {[%clk
00:07:16]} {[%emt 00:00:14]} 39. g4 {[%clk 00:06:36]} {[%emt 00:01:19]} fxg4
{[%clk 00:04:40]} {[%emt 00:03:07]} 40. hxg4 {[%clk 00:06:52]} {[%emt
00:00:14]} h6 {[%clk 00:04:33]} {[%emt 00:00:38]} 41. Kf3 {[%clk 00:06:58]}
{[%emt 00:00:21]} Kf6 {[%clk 00:04:58]} {[%emt 00:00:06]} 42. Ke4 {[%clk
00:07:00]} {[%emt 00:00:29]} Bb6 {[%clk 00:05:04]} {[%emt 00:00:23]} 43. b5
{[%clk 00:05:46]} {[%emt 00:01:45]} Bc7 {[%clk 00:04:52]} {[%emt 00:00:41]} 44.
Bd3 {[%clk 00:29:06]} {[%emt 00:07:10]} Bb6 {[%clk 00:31:55]} {[%emt 00:03:29]}
45. f5 {[%clk 00:23:36]} {[%emt 00:06:00]} h5 {[%clk 00:27:25]} {[%emt
00:05:00]} 46. fxg6 {[%clk 00:19:26]} {[%emt 00:04:40]} Kxg6 {[%clk 00:27:27]}
{[%emt 00:00:27]} 47. Kf4+ {[%clk 00:19:47]} {[%emt 00:00:10]} Kf6 {[%clk
00:24:15]} {[%emt 00:03:42]} 48. g5+ {[%clk 00:17:53]} {[%emt 00:02:24]} Kg7
{[%clk 00:24:38]} {[%emt 00:00:06]} 49. Be2 {[%clk 00:17:05]} {[%emt 00:01:18]}
Kg6 {[%clk 00:24:24]} {[%emt 00:00:44]} 50. Bd3+ {[%clk 00:17:34]} {[%emt
00:00:02]} Kg7 {[%clk 00:24:50]} {[%emt 00:00:05]} 51. Kf5 {[%clk 00:16:04]}
{[%emt 00:01:59]} Bf2 {[%clk 00:25:01]} {[%emt 00:00:17]} 52. Be2 {[%clk
00:15:25]} {[%emt 00:01:10]} h4 {[%clk 00:25:28]} {[%emt 00:00:04]} 53. Bg4
{[%clk 00:15:44]} {[%emt 00:00:09]} Kf7 {[%clk 00:25:44]} {[%emt 00:00:12]} 54.
g6+ {[%clk 00:15:41]} {[%emt 00:00:35]} Kg7 {[%clk 00:25:53]} {[%emt 00:00:20]}
55. Kg5 {[%clk 00:16:01]} {[%emt 00:00:12]} Bd4 {[%clk 00:19:07]} {[%emt
00:07:16]} 56. Bf5 {[%clk 00:14:29]} {[%emt 00:02:02]} Bf6+ {[%clk 00:19:20]}
{[%emt 00:00:17]} 57. Kg4 {[%clk 00:13:49]} {[%emt 00:01:10]} Bd8 {[%clk
00:19:45]} {[%emt 00:00:04]} 58. Kh5 {[%clk 00:13:02]} {[%emt 00:01:17]} Kh8
{[%clk 00:01:47]} {[%emt 00:18:28]} 59. Kh6 {[%clk 00:12:16]} {[%emt 00:01:16]}
Bf6 {[%clk 00:01:28]} {[%emt 00:00:49]} 60. b6 {[%clk 00:10:26]} {[%emt
00:02:21]} Bg7+ {[%clk 00:00:35]} {[%emt 00:01:22]} 61. Kg5 {[%clk 00:09:19]}
{[%emt 00:01:36]} Be5 {[%clk 00:00:31]} {[%emt 00:00:34]} 62. Kxh4 {[%clk
00:09:13]} {[%emt 00:00:36]} Kg7 {[%clk 00:01:00]} {[%emt 00:00:02]} 63. Kg5
{[%clk 00:08:32]} {[%emt 00:01:11]} Bb8 {[%clk 00:01:11]} {[%emt 00:00:18]} 64.
Be4 {[%clk 00:07:31]} {[%emt 00:01:31]} Bh2 {[%clk 00:01:02]} {[%emt 00:00:40]}
65. Kf5 {[%clk 00:07:52]} {[%emt 00:00:09]} Bg3 {[%clk 00:00:32]} {[%emt
00:00:59]} 66. Ke6 {[%clk 00:07:59]} {[%emt 00:00:22]} Bf4 {[%clk 00:00:50]}
{[%emt 00:00:13]} 67. Kd7 {[%clk 00:08:14]} {[%emt 00:00:15]} 1-0

[Event "Allsvenskan 24-25"]
[Site "Linköping, Sweden"]
[Date "2025.03.15"]
[Round "9.3"]
[White "Larsson, Fredrik"]
[Black "Ahlström, Per"]
[Result "1-0"]
[TimeControl "90 min/40 moves + 30 min + 30 sec from move 1"]
[WhiteElo "1995"]
[BlackElo "1829"]

1. d4 {[%clk 01:30:56]} {[%emt 00:00:03]} Nf6 {[%clk 01:30:47]} {[%emt
00:00:13]} 2. c4 {[%clk 01:31:18]} {[%emt 00:00:07]} g6 {[%clk 01:31:05]}
{[%emt 00:00:13]} 3. Nc3 {[%clk 01:31:44]} {[%emt 00:00:04]} Bg7 {[%clk
01:31:29]} {[%emt 00:00:06]} 4. e4 {[%clk 01:32:11]} {[%emt 00:00:03]} d6
{[%clk 01:31:47]} {[%emt 00:00:13]} 5. Be2 {[%clk 01:32:37]} {[%emt 00:00:05]}
O-O {[%clk 01:30:54]} {[%emt 00:01:22]} 6. Nf3 {[%clk 01:33:00]} {[%emt
00:00:08]} e5 {[%clk 01:27:14]} {[%emt 00:04:10]} 7. O-O {[%clk 01:33:18]}
{[%emt 00:00:12]} Nc6 {[%clk 01:27:38]} {[%emt 00:00:05]} 8. d5 {[%clk
01:33:39]} {[%emt 00:00:08]} Ne7 {[%clk 01:28:04]} {[%emt 00:00:05]} 9. Ne1
{[%clk 01:33:32]} {[%emt 00:00:37]} Ne8 {[%clk 01:25:29]} {[%emt 00:03:05]} 10.
Nd3 {[%clk 01:33:49]} {[%emt 00:00:13]} f5 {[%clk 01:21:59]} {[%emt 00:03:59]}
11. Bd2 {[%clk 01:34:07]} {[%emt 00:00:12]} c6 {[%clk 01:03:18]} {[%emt
00:19:12]} 12. Qb3 {[%clk 01:19:05]} {[%emt 00:15:32]} Kh8 {[%clk 00:53:37]}
{[%emt 00:10:11]} 13. Rfd1 {[%clk 01:01:31]} {[%emt 00:18:03]} Nf6 {[%clk
00:39:35]} {[%emt 00:14:33]} 14. f3 {[%clk 01:00:28]} {[%emt 00:01:33]} f4
{[%clk 00:31:44]} {[%emt 00:08:20]} 15. Be1 {[%clk 00:52:34]} {[%emt 00:08:24]}
c5 {[%clk 00:26:26]} {[%emt 00:05:48]} 16. Qc2 {[%clk 00:46:35]} {[%emt
00:06:29]} g5 {[%clk 00:25:26]} {[%emt 00:01:30]} 17. Nf2 {[%clk 00:42:37]}
{[%emt 00:04:28]} Ng6 {[%clk 00:21:11]} {[%emt 00:04:43]} 18. a3 {[%clk
00:39:40]} {[%emt 00:03:30]} h5 {[%clk 00:20:09]} {[%emt 00:01:32]} 19. h3
{[%clk 00:38:20]} {[%emt 00:01:50]} Nh4 {[%clk 00:19:12]} {[%emt 00:01:27]} 20.
b4 {[%clk 00:35:59]} {[%emt 00:02:50]} b6 {[%clk 00:18:42]} {[%emt 00:01:00]}
21. bxc5 {[%clk 00:35:10]} {[%emt 00:01:20]} bxc5 {[%clk 00:18:13]} {[%emt
00:01:00]} 22. Qa4 {[%clk 00:30:01]} {[%emt 00:05:38]} Bd7 {[%clk 00:13:14]}
{[%emt 00:05:28]} 23. Qa6 {[%clk 00:29:17]} {[%emt 00:01:15]} Qb6 {[%clk
00:13:02]} {[%emt 00:00:43]} 24. Qxb6 {[%clk 00:29:18]} {[%emt 00:00:29]} axb6
{[%clk 00:13:25]} {[%emt 00:00:06]} 25. Rdb1 {[%clk 00:28:17]} {[%emt
00:01:31]} Ra6 {[%clk 00:11:55]} {[%emt 00:02:00]} 26. Nb5 {[%clk 00:23:30]}
{[%emt 00:05:17]} Bxb5 {[%clk 00:12:09]} {[%emt 00:00:16]} 27. Rxb5 {[%clk
00:23:56]} {[%emt 00:00:05]} Nd7 {[%clk 00:12:28]} {[%emt 00:00:10]} 28. a4
{[%clk 00:22:16]} {[%emt 00:02:09]} Ng6 {[%clk 00:11:52]} {[%emt 00:01:06]} 29.
Nd1 {[%clk 00:18:03]} {[%emt 00:04:43]} Ne7 {[%clk 00:08:48]} {[%emt 00:03:34]}
30. Nc3 {[%clk 00:15:49]} {[%emt 00:02:44]} Rfa8 {[%clk 00:09:04]} {[%emt
00:00:13]} 31. Rb2 {[%clk 00:14:15]} {[%emt 00:02:03]} Nc8 {[%clk 00:09:11]}
{[%emt 00:00:24]} 32. Bd1 {[%clk 00:14:03]} {[%emt 00:00:43]} Bf8 {[%clk
00:09:13]} {[%emt 00:00:29]} 33. Nb5 {[%clk 00:13:33]} {[%emt 00:00:59]} Rb8
{[%clk 00:08:26]} {[%emt 00:01:16]} 34. h4 {[%clk 00:10:49]} {[%emt 00:03:15]}
Be7 {[%clk 00:08:35]} {[%emt 00:00:21]} 35. Kh2 {[%clk 00:09:57]} {[%emt
00:01:23]} Kg7 {[%clk 00:08:19]} {[%emt 00:00:45]} 36. Kh3 {[%clk 00:08:05]}
{[%emt 00:02:23]} Kg6 {[%clk 00:06:11]} {[%emt 00:02:37]} 37. Raa2 {[%clk
00:07:36]} {[%emt 00:00:58]} Bd8 {[%clk 00:05:58]} {[%emt 00:00:43]} 38. Re2
{[%clk 00:04:22]} {[%emt 00:03:45]} Rb7 {[%clk 00:02:49]} {[%emt 00:03:39]} 39.
Rf2 {[%clk 00:01:41]} {[%emt 00:03:10]} Nf8 {[%clk 00:01:25]} {[%emt 00:01:54]}
40. Rf1 {[%clk 00:01:00]} {[%emt 00:01:11]} Nh7 {[%clk 00:00:48]} {[%emt
00:01:07]} 41. g3 {[%clk 00:26:41]} {[%emt 00:04:49]} Rf7 {[%clk 00:28:31]}
{[%emt 00:02:46]} 42. Rg2 {[%clk 00:23:49]} {[%emt 00:03:23]} Ra8 {[%clk
00:20:35]} {[%emt 00:08:26]} 43. Bd2 {[%clk 00:21:30]} {[%emt 00:02:49]} Rb8
{[%clk 00:16:38]} {[%emt 00:04:27]} 44. Bc2 {[%clk 00:18:59]} {[%emt 00:03:01]}
Rbb7 {[%clk 00:13:55]} {[%emt 00:03:12]} 45. gxf4 {[%clk 00:18:03]} {[%emt
00:01:27]} exf4 {[%clk 00:14:11]} {[%emt 00:00:14]} 46. e5+ {[%clk 00:17:25]}
{[%emt 00:01:08]} Kh6 {[%clk 00:11:46]} {[%emt 00:02:55]} 47. e6 {[%clk
00:15:20]} {[%emt 00:02:34]} Rf8 {[%clk 00:11:50]} {[%emt 00:00:27]} 48. Bc3
{[%clk 00:12:11]} {[%emt 00:03:39]} Be7 {[%clk 00:09:23]} {[%emt 00:02:57]} 49.
Rfg1 {[%clk 00:10:47]} {[%emt 00:01:54]} Na7 {[%clk 00:08:36]} {[%emt
00:01:17]} 50. Bxh7 {[%clk 00:09:16]} {[%emt 00:02:01]} Kxh7 {[%emt 00:00:07]}
51. hxg5 {[%clk 00:09:43]} {[%emt 00:00:04]} Kg6 {[%clk 00:09:10]} {[%emt
00:00:17]} 52. Bf6 {[%clk 00:06:02]} {[%emt 00:04:12]} Nxb5 {[%clk 00:07:43]}
{[%emt 00:01:56]} 53. axb5 {[%clk 00:06:24]} {[%emt 00:00:09]} Ra8 {[%clk
00:07:20]} {[%emt 00:00:53]} 54. Bxe7 {[%clk 00:03:57]} {[%emt 00:02:57]} Rxe7
{[%clk 00:07:45]} {[%emt 00:00:05]} 55. Re2 {[%clk 00:02:46]} {[%emt 00:01:41]}
Ra3 {[%clk 00:07:53]} {[%emt 00:00:21]} 56. Kg2 {[%clk 00:02:46]} {[%emt
00:00:31]} Rc3 {[%clk 00:08:18]} {[%emt 00:00:05]} 57. Re4 {[%clk 00:02:56]}
{[%emt 00:00:21]} Kxg5 {[%clk 00:08:17]} {[%emt 00:00:31]} 58. Kf2+ {[%clk
00:02:31]} {[%emt 00:00:54]} Kf5 {[%clk 00:08:20]} {[%emt 00:00:27]} 59. Rg8
{[%clk 00:02:30]} {[%emt 00:00:31]} Rc2+ {[%clk 00:04:45]} {[%emt 00:04:04]} 60.
Kf1 {[%clk 00:02:15]} {[%emt 00:00:46]} Ra2 {[%clk 00:02:38]} {[%emt 00:02:36]}
61. Rf8+ {[%clk 00:02:30]} {[%emt 00:00:15]} Kg6 {[%clk 00:02:52]} {[%emt
00:00:15]} 62. Rexf4 {[%clk 00:02:21]} {[%emt 00:00:39]} Raa7 {[%clk 00:02:52]}
{[%emt 00:00:30]} 63. Rg8+ {[%clk 00:01:54]} {[%emt 00:00:58]} Kh7 {[%clk
00:02:57]} {[%emt 00:00:25]} 64. Rg5 {[%clk 00:01:44]} {[%emt 00:00:40]} Kh6
{[%clk 00:03:14]} {[%emt 00:00:13]} 65. Rff5 {[%clk 00:02:03]} {[%emt
00:00:11]} h4 {[%clk 00:02:54]} {[%emt 00:00:51]} 66. Rh5+ {[%clk 00:02:00]}
{[%emt 00:00:33]} Kg6 {[%clk 00:03:16]} {[%emt 00:00:08]} 67. Rhg5+ {[%clk
00:02:29]} {[%emt 00:00:01]} Kh6 {[%clk 00:03:37]} {[%emt 00:00:08]} 68. f4
{[%clk 00:02:58]} Rg7 {[%clk 00:01:07]} {[%emt 00:03:00]} 69. Rh5+ {[%clk
00:02:36]} {[%emt 00:00:51]} Kg6 {[%clk 00:01:32]} {[%emt 00:00:05]} 70. Rfg5+
{[%clk 00:02:53]} {[%emt 00:00:14]} Kf6 {[%clk 00:01:55]} {[%emt 00:00:06]} 71.
Rh6+ {[%clk 00:03:17]} {[%emt 00:00:07]} 1-0

[Event "Allsvenskan 24-25"]
[Site "Linköping, Sweden"]
[Date "2025.03.15"]
[Round "9.4"]
[White "Lilljebjorn, Erik Gustaf"]
[Black "Bjornvall, Tord"]
[Result "0-1"]
[TimeControl "90 min/40 moves + 30 min + 30 sec from move 1"]
[WhiteElo "1805"]
[BlackElo "1959"]

1. e4 {[%clk 01:30:57]} {[%emt 00:00:02]} e5 {[%clk 01:30:44]} {[%emt
00:00:17]} 2. Nf3 {[%clk 01:31:20]} {[%emt 00:00:07]} Nc6 {[%clk 01:30:58]}
{[%emt 00:00:15]} 3. Nc3 {[%clk 01:31:08]} {[%emt 00:00:43]} Nf6 {[%clk
01:31:13]} {[%emt 00:00:14]} 4. d4 {[%clk 01:31:25]} {[%emt 00:00:14]} exd4
{[%clk 01:31:28]} {[%emt 00:00:14]} 5. Nxd4 {[%clk 01:31:44]} {[%emt 00:00:12]}
Bb4 {[%clk 01:28:51]} {[%emt 00:03:06]} 6. Nxc6 {[%clk 01:31:53]} {[%emt
00:00:21]} bxc6 {[%clk 01:28:47]} {[%emt 00:00:32]} 7. Bd3 {[%clk 01:31:50]}
{[%emt 00:00:34]} O-O {[%clk 01:26:23]} {[%emt 00:02:53]} 8. O-O {[%clk
01:28:54]} {[%emt 00:03:26]} d5 {[%clk 01:16:41]} {[%emt 00:10:11]} 9. exd5
{[%clk 01:20:22]} {[%emt 00:09:04]} Nxd5 {[%clk 01:09:59]} {[%emt 00:07:10]} 10.
Ne4 {[%clk 01:11:03]} {[%emt 00:09:49]} f5 {[%clk 01:04:29]} {[%emt 00:05:59]}
11. Ng5 {[%clk 00:56:47]} {[%emt 00:14:35]} h6 {[%clk 01:01:40]} {[%emt
00:03:30]} 12. Nf3 {[%clk 00:55:41]} {[%emt 00:01:37]} Qf6 {[%clk 00:57:42]}
{[%emt 00:04:25]} 13. Rb1 {[%clk 00:47:39]} {[%emt 00:08:35]} Bd6 {[%clk
00:51:57]} {[%emt 00:06:14]} 14. Bc4 {[%clk 00:44:43]} {[%emt 00:03:28]} Kh8
{[%clk 00:48:46]} {[%emt 00:03:39]} 15. Bxd5 {[%clk 00:43:05]} {[%emt
00:02:09]} cxd5 {[%clk 00:49:02]} {[%emt 00:00:13]} 16. Qxd5 {[%clk 00:42:54]}
{[%emt 00:00:42]} Be6 {[%clk 00:47:17]} {[%emt 00:02:12]} 17. Qa5 {[%clk
00:43:07]} {[%emt 00:00:20]} f4 {[%clk 00:42:37]} {[%emt 00:05:08]} 18. b3
{[%clk 00:40:40]} {[%emt 00:02:59]} Qg6 {[%clk 00:36:50]} {[%emt 00:06:16]} 19.
Nh4 {[%clk 00:32:15]} {[%emt 00:08:56]} Qg4 {[%clk 00:34:52]} {[%emt 00:02:26]}
20. Nf3 {[%clk 00:29:15]} {[%emt 00:03:33]} Rf5 {[%clk 00:34:03]} {[%emt
00:01:17]} 21. Qc3 {[%clk 00:26:17]} {[%emt 00:03:30]} Bd5 {[%clk 00:33:44]}
{[%emt 00:00:47]} 22. h3 {[%clk 00:22:52]} {[%emt 00:03:58]} Qh5 {[%clk
00:30:13]} {[%emt 00:03:59]} 23. Bb2 {[%clk 00:18:47]} {[%emt 00:04:36]} Rf6
{[%clk 00:30:16]} {[%emt 00:00:25]} 24. Qd3 {[%clk 00:15:18]} {[%emt 00:04:00]}
Rg6 {[%clk 00:28:30]} {[%emt 00:02:14]} 25. Nh4 {[%clk 00:12:42]} {[%emt
00:03:08]} Rg5 {[%clk 00:28:25]} {[%emt 00:00:32]} 26. g3 {[%emt 00:08:20]} 0-1